fUSD/lending_fUSD_20251017
["ID","MTS","AMOUNT","RATE_DAILY","PERIOD"]
[391605225,1760695834521,-150.0,0.00023288,2]
[391605226,1760695834531,-150.0,0.00023288,2]
[391605227,1760695834542,-150.0,0.00023288,2]
[391605228,1760695834551,-200.0,0.00023288,2]
[391605229,1760695834561,-150.0,0.00023288,2]
[391605230,1760695834571,-150.0,0.00023288,2]
[391605231,1760695834581,-150.0,0.00023343,2]
[391605232,1760695834591,-150.0,0.00023343,2]
[391605233,1760695834602,-150.0,0.00023343,2]
[391605234,1760695834611,-150.0,0.00023343,2]
[391605235,1760695834620,-150.0,0.00023343,2]
[391605236,1760695834630,-150.0,0.00023343,2]
[391605237,1760695834640,-150.0,0.00023343,2]
[391605238,1760695834650,-150.0,0.00023343,2]
[391605239,1760695834660,-150.0,0.00023343,2]
[391605240,1760695834670,-5608.15661047,0.00023368,2]
[391605241,1760695834714,-4000.0,0.00023368,2]
[391605242,1760695834728,-10391.83338953,0.00023368,2]
[391605243,1760695834739,-250.0,0.00023398,2]
[391605244,1760695834749,-250.0,0.00023398,2]
[391605245,1760695834759,-250.0,0.00023398,2]
[391605246,1760695834768,-250.0,0.00023398,2]
[391605247,1760695834778,-250.0,0.00023398,2]
[391605248,1760695834788,-250.0,0.00023398,2]
[391605249,1760695834798,-250.0,0.00023398,2]
[391605250,1760695834810,-215.94485222,0.00023398,2]
[391605251,1760695834836,-250.0,0.00023398,2]
[391605252,1760695834846,-500.0,0.00023416,2]
[391605253,1760695834856,-298.24360232,0.00023705,2]
[391605254,1760695834866,-546.7,0.00023778,2]
[391605255,1760695834877,-3447.62739556,0.00023917,2]
[391605256,1760695834887,-2002.6,0.00024,3]
[391605257,1760695834898,-168.24,0.00024034,2]
[391605258,1760695834907,-168.24,0.00024034,2]
[391605259,1760695834917,-1323.55516037,0.0002411,2]
[391605260,1760695834931,-4337.18798623,0.0002411,2]
[391605261,1760695834941,-153.75390566,0.0002417,2]
[391605262,1760695834951,-915.4,0.00024174,2]
[391605263,1760695834961,-2079.85810812,0.00024174,2]
[391605270,1760695837531,-777.73847272,0.00024174,2]
[391605271,1760695837588,-405.26152728,0.00024174,2]
[391605272,1760695837598,-2346.12742776,0.00024257,2]
[391605273,1760695837608,-6436.0,0.00024266,2]
[391605274,1760695837618,-6445.0,0.00024266,2]
[391605275,1760695837627,-557.0,0.00024266,2]
[391605276,1760695837637,-2346.12742771,0.00024321,2]
[391605277,1760695837647,-1000.0,0.00024357,2]
[391605278,1760695837656,-2500.0,0.00024357,2]
[391605279,1760695837665,-2346.12742771,0.00024385,2]
[391605280,1760695837675,-788.8110693,0.000244,2]
[391605281,1760695837684,-151.0,0.00024416,2]
[391605282,1760695837693,-881.6423926,0.00024416,2]
[391605283,1760695837703,-207.06072452,0.00024446,2]
[391605284,1760695837713,-788.81106922,0.00024448,2]
[391605285,1760695837726,-2346.12742771,0.00024448,2]
[391605286,1760695837738,-500.0,0.00024456,2]
[391605287,1760695837748,-2986.3426,0.00024457,2]
[391605288,1760695837759,-33121.9923,0.00024457,2]
[391605289,1760695837770,-90942.6963,0.00024457,2]
[391605290,1760695837780,-1000.0,0.00024457,2]
[391605291,1760695837790,-500.0,0.00024459,2]
[391605292,1760695837799,-265.904658,0.00024459,2]
[391605293,1760695837814,-500.0,0.0002446,2]
[391605294,1760695837823,-500.0,0.0002446,2]
[391605295,1760695837833,-200.0,0.0002446,2]
[391605296,1760695837843,-1425.0,0.00024473,2]
[391605298,1760695837853,-168.0,0.0002449,2]
[391605300,1760695837862,-150.0,0.00024494,2]
[391605302,1760695837871,-788.81106922,0.00024496,2]
[391605304,1760695837880,-194.621,0.00024499,2]
[391605306,1760695837890,-10101.47044334,0.000245,2]
[391605308,1760695837900,-2000.0,0.000245,3]
[391605310,1760695837910,-158.0110789,0.00024503,2]
[391605312,1760695837921,-300.0,0.00024508,2]
[391605314,1760695837931,-168.0,0.00024511,2]
[391605316,1760695837941,-2346.12742771,0.00024512,2]
[391605318,1760695837950,-1000.0,0.00024537,2]
[391605320,1760695837960,-1000.0,0.00024539,2]
[391605322,1760695837971,-1000.0,0.00024543,2]
[391605325,1760695837981,-788.81106922,0.00024543,2]
[391605327,1760695837991,-500.0,0.00024556,2]
[391605329,1760695838000,-500.0,0.00024556,2]
[391605331,1760695838009,-5000.0,0.00024557,2]
[391605332,1760695838019,-55555.0,0.00024557,3]
[391605334,1760695838028,-190.0308241,0.00024557,2]
[391605336,1760695838039,-177.65884184,0.00024557,2]
[391605338,1760695838049,-174.21429088,0.00024557,2]
[391605340,1760695838059,-1000.0,0.00024563,2]
[391605342,1760695838069,-2346.12742771,0.00024576,2]
[391605344,1760695838078,-1000.0,0.00024577,2]
[391605346,1760695838088,-168.0,0.00024581,2]
[391605348,1760695838098,-1425.0,0.00024582,2]
[391605350,1760695838109,-788.81106922,0.00024591,2]
[391605352,1760695838119,-150.0,0.00024599,2]
[391605354,1760695838130,-500.0,0.00024599,2]
[391605356,1760695838140,-500.0,0.00024599,2]
[391605358,1760695838149,-500.0,0.00024599,2]
[391605360,1760695838159,-500.0,0.00024599,2]
[391605362,1760695838169,-500.0,0.00024599,2]
[391605364,1760695838179,-500.0,0.00024599,2]
[391605367,1760695838189,-500.0,0.00024599,2]
[391605369,1760695838199,-10348.44278581,0.00024599,2]
[391605371,1760695838208,-1271.4677123,0.00024599,2]
[391605373,1760695838221,-49434.36260799,0.000246,2]
[391605398,1760695838461,-11523.11005046,0.000246,2]
[391605402,1760695838494,-5676.30297455,0.000246,2]
[391605404,1760695838507,-3711.79881914,0.000246,2]
[391605506,1760695839588,-11183.0,0.000246,2]
[391605518,1760695839695,-11278.0,0.000246,2]
[391605521,1760695839711,-525.8,0.000246,2]
[391605523,1760695839731,-1000.0,0.000246,2]
[391605525,1760695839743,-1616.83435253,0.000246,2]
[391605527,1760695839755,-3248.9,0.000246,2]
[391605538,1760695839853,-435.95646339,0.000246,2]
[391605574,1760695840173,-16665.84870111,0.000246,2]
[391605585,1760695840322,-1.6e-07,0.000246,2]
[391605586,1760695840343,-3213.3858612,0.000246,2]
[391605599,1760695842636,-104799.99999992,0.000246,2]
[391605600,1760695842854,-415.90549,0.000246,2]
[391605601,1760695842867,-830.151753,0.000246,2]
[391605608,1760695845578,-2977.35642663,0.000246,2]
[391605609,1760695845844,-8579.89964214,0.000246,2]
[391605610,1760695845856,-3042.1463892,0.000246,2]
[391605611,1760695845867,-48.93107362,0.000246,5]
[391605618,1760696143199,-201.02373801,0.00014899,2]
[391605619,1760696143224,-2000.0,0.00014985,2]
[391605620,1760696143245,-2000.0,0.00014985,2]
[391605621,1760696143267,-923.964,0.00014985,2]
[391605622,1760696143288,-1000.0,0.00014985,2]
[391605623,1760696143309,-1000.0,0.00014985,2]
[391605624,1760696143331,-300.0,0.00014989,2]
[391605625,1760696143353,-1200.0,0.00014989,2]
[391605626,1760696143374,-300.0,0.00014989,2]
[391605627,1760696558616,160.4,0.00027397,120]
[391605634,1760696662217,500.0,0.00027397,120]
[391605635,1760696669181,151.0,0.00016423,2]
[391605636,1760696708467,1075.01226199,0.00015,2]
[391605637,1760696732350,-160.0,0.00015,2]
[391605640,1760696789105,-6071.67885671,0.000149,2]
[391605641,1760696789134,-6071.67885671,0.00014968,2]
[391605642,1760696789162,-4856.64228658,0.00015,2]
[391605679,1760697031828,-1499.48,0.00014857,2]
[391605680,1760697031840,-160.67415124,0.000149,2]
[391605681,1760697031852,-157.27864673,0.000149,2]
[391605682,1760697031862,-178.77397838,0.000149,2]
[391605683,1760697031874,-191.09994673,0.000149,2]
[391605684,1760697031885,-540.1841565,0.000149,2]
[391605685,1760697031895,-1200.0,0.00014935,2]
[391605686,1760697031905,-1063.70576575,0.00014936,2]
[391605687,1760697031916,-132.43193298,0.00014972,2]
[391605688,1760697031929,-167.56806702,0.00014972,2]
[391605689,1760697031939,-400.21203327,0.00014973,2]
[391605690,1760697031961,-99.78796673,0.00014973,2]
[391605691,1760697031972,-500.0,0.00014973,2]
[391605692,1760697031982,-501.18091884,0.00014973,2]
[391605693,1760697031993,-500.0,0.00014973,2]
[391605694,1760697032003,-331.51333905,0.00014973,2]
[391605695,1760697032014,-500.0,0.00014973,2]
[391605696,1760697032024,-500.0,0.00014973,2]
[391605697,1760697032034,-500.0,0.00014973,2]
[391605698,1760697032045,-500.0,0.00014973,2]
[391605699,1760697032055,-500.0,0.00014973,2]
[391605700,1760697032068,-500.0,0.00014973,2]
[391605701,1760697032079,-500.0,0.00014973,2]
[391605702,1760697032094,-500.37487873,0.00014973,2]
[391605703,1760697032106,-97.46769664,0.0001499,2]
[391605704,1760697032145,-88.66452138,0.0001499,2]
[391605705,1760697032155,-186.13221802,0.0001499,2]
[391605706,1760697032165,-150.0,0.00014998,2]
[391605707,1760697032175,-500.0,0.00014999,2]
[391605708,1760697032185,-217.35225774,0.00014999,2]
[391605709,1760697032199,-261.67213411,0.00014999,2]
[391605710,1760697032210,-250.0510409,0.00014999,2]
[391605711,1760697032221,-437.01662785,0.00014999,2]
[391605712,1760697032235,-62.98337215,0.00014999,2]
[391605713,1760697032246,-335.88267554,0.00014999,2]
[391605714,1760697032257,-242.57187722,0.00014999,2]
[391605715,1760697032285,-257.42812278,0.00014999,2]
[391605716,1760697032300,-500.0,0.00014999,2]
[391605717,1760697032317,-500.0,0.00014999,2]
[391605718,1760697032331,-500.0,0.00014999,2]
[391605719,1760697032345,-377.14673955,0.00014999,2]
[391605720,1760697032357,-500.0,0.00014999,2]
[391605721,1760697032369,-500.0,0.00014999,2]
[391605722,1760697032381,-500.0,0.00014999,2]
[391605723,1760697032394,-500.0,0.00014999,2]
[391605724,1760697032408,-500.0,0.00014999,2]
[391605725,1760697032421,-500.0,0.00014999,2]
[391605726,1760697032434,-500.0,0.00014999,2]
[391605727,1760697032453,-500.0,0.00014999,2]
[391605728,1760697032467,-500.0,0.00014999,2]
[391605729,1760697032480,-500.0,0.00014999,2]
[391605730,1760697032493,-500.0,0.00014999,2]
[391605731,1760697032506,-500.0,0.00014999,2]
[391605732,1760697032521,-500.0,0.00014999,2]
[391605733,1760697032533,-500.0,0.00014999,2]
[391605734,1760697032546,-500.0,0.00014999,2]
[391605735,1760697032559,-500.0,0.00014999,2]
[391605736,1760697032571,-500.0,0.00014999,2]
[391605737,1760697032582,-500.0,0.00014999,2]
[391605738,1760697032593,-500.0,0.00014999,2]
[391605739,1760697032604,-500.0,0.00014999,2]
[391605740,1760697032617,-500.0,0.00014999,2]
[391605741,1760697032631,-500.0,0.00014999,2]
[391605742,1760697032643,-4759.15459061,0.00015,2]
[391605743,1760697033411,-558.345,0.00015,2]
[391605744,1760697033425,-938.28735,0.00015,2]
[391605745,1760697033460,-10405.8441529,0.00015,2]
[391605746,1760697033576,-4428.561,0.00015,2]
[391605747,1760697033592,-10349.7682,0.00015,2]
[391605748,1760697033675,-312.0,0.00015,2]
[391605749,1760697033691,-1184.52752387,0.00015,2]
[391605750,1760697033708,-1047.443668,0.00015,2]
[391605751,1760697033741,-520.4379994,0.00015,2]
[391605752,1760697033854,-1853.31296,0.00015,2]
[391605753,1760697033868,-1040.2,0.00015,2]
[391605754,1760697033882,-31736.37794405,0.00015,2]
[391606011,1760697037785,-3506.26482563,0.00015,2]
[391606013,1760697037797,-1923.56255802,0.00015,2]
[391606018,1760697037830,-4668.30714425,0.00015,2]
[391606020,1760697037841,-14479.21544314,0.00015,2]
[391606022,1760697037852,-11233.55531627,0.00015,2]
[391606024,1760697037864,-35640.46138277,0.00015,2]
[391606027,1760697037875,-21028.14429274,0.00015,2]
[391606029,1760697037885,-82971.85570726,0.00015,2]
[391606031,1760697037898,-34523.75098506,0.00015,2]
[391606033,1760697037910,-122416.19963133,0.00015,2]
[391606037,1760697037930,-1038.0,0.00015,2]
[391606039,1760697037942,-12541.36159971,0.00015,2]
[391606041,1760697037959,-344.38859417,0.00015,2]
[391606044,1760697037971,-1650.11734026,0.00015,2]
[391606153,1760697039837,-332.57952245,0.00015,2]
[391606154,1760697039870,-1.32346365,0.00015,2]
[391606155,1760697039881,-40932.14232213,0.00015,2]
[391606156,1760697039893,-372.34049029,0.00015,2]
[391606157,1760697039904,-393.66239999,0.00015,2]
[391606158,1760697039995,-844.93253065,0.00015,2]
[391606159,1760697040008,-1125.62232201,0.00015,2]
[391606160,1760697040019,-52050.0,0.00015,2]
[391606161,1760697040031,-225193.68640867,0.00015,2]
[391606162,1760697040042,-1695.9240874,0.00015,2]
[391606163,1760697040054,-7266.0,0.00015,2]
[391606164,1760697040070,-8514.81995692,0.00015,2]
[391606165,1760697040081,-8947.21879473,0.00015,2]
[391606166,1760697040092,-8943.78386462,0.00015,2]
[391606167,1760697040104,-9077.54866152,0.00015,2]
[391606168,1760697040116,-8943.84023489,0.00015,2]
[391606169,1760697040135,-3125.55,0.00015,2]
[391606171,1760697040148,-1523.8466164,0.00015,2]
[391606174,1760697040159,-4062629.84747756,0.00015,2]
[391606176,1760697040174,-33840.0,0.00015,2]
[391606178,1760697040194,-104425.98841872,0.00015,2]
[391606179,1760697040305,-7256.5591712,0.00015,2]
[391606180,1760697040317,-10400.0,0.00015,2]
[391606181,1760697040358,-35193.43601863,0.00015,2]
[391606182,1760697040370,-431.97,0.00015,2]
[391606209,1760697042794,-77021.52754398,0.00015,2]
[391606230,1760697042905,-366.36392,0.00015,2]
[391606233,1760697042917,-20810.02601744,0.00015,2]
[391606237,1760697042931,-417.42,0.00015,2]
[391606241,1760697042944,-275.90359998,0.00015,2]
[391606243,1760697042973,-74888.30110778,0.00015,2]
[391606244,1760697042985,-1041.0,0.00015,2]
[391606245,1760697043018,-12883.88729669,0.00015,2]
[391606250,1760697043091,-3817.39833,0.00015,2]
[391606252,1760697043103,-3681.900821,0.00015,2]
[391606284,1760697045831,-923.75392,0.00014999,2]
[391606286,1760697045947,-1127.8,0.00014999,2]
[391606287,1760697045964,-4257.15612621,0.00014999,2]
[391606288,1760697045974,-47883.26987378,0.00015,2]
[391606289,1760697045986,-602.134996,0.00015,2]
[391606290,1760697046014,-748.96505671,0.00015,2]
[391606291,1760697046071,-1110.0,0.00015,2]
[391606292,1760697046130,-6102.36830735,0.00015,2]
[391606293,1760697046189,-3802.0578804,0.00015,2]
[391606294,1760697046211,-10415.0,0.00015,2]
[391606310,1760697276544,150.0,0.00026027,120]
[391606311,1760697276725,150.0,0.00026027,120]
[391606312,1760697276907,204.75633448,0.00026027,120]
[391606335,1760697552471,500.0,0.00027397,120]
[391606336,1760697610263,163.6092921,0.00027,120]
[391606360,1760698211260,250.0,0.00013644,7]
[391606398,1760698232116,-1000.0,0.00013734,2]
[391606400,1760698232136,-1373.79220452,0.00013744,3]
[391606405,1760698232172,-3626.20779548,0.00013744,3]
[391606407,1760698232182,-300.0,0.00013754,2]
[391606409,1760698232192,-1200.0,0.00013754,2]
[391606411,1760698232202,-300.0,0.00013754,2]
[391606413,1760698232211,-4745.84160874,0.00013755,3]
[391606415,1760698232224,-254.15839126,0.00013755,3]
[391606418,1760698232234,-5000.0,0.00013771,3]
[391606420,1760698232243,-1600.0,0.00013776,2]
[391606422,1760698232254,-1988.37489724,0.00013789,2]
[391606425,1760698232263,-666.0,0.00013802,3]
[391606427,1760698232274,-7325.58,0.00013806,2]
[391606429,1760698232284,-7544.75,0.00013913,2]
[391606431,1760698232293,-200.0,0.00014059,2]
[391606433,1760698232303,-2751.0,0.00014066,2]
[391606436,1760698232313,-1463.46,0.00014194,2]
[391606438,1760698232323,-166.62,0.00014335,2]
[391606441,1760698232333,-558.18696137,0.00014339,2]
[391606444,1760698232342,-435.0,0.00014442,2]
[391606446,1760698232351,-415.32724567,0.00014471,2]
[391606450,1760698232364,-266.97453593,0.00014506,2]
[391606453,1760698232377,-441.0,0.00014536,2]
[391606456,1760698232392,-396.0,0.00014725,2]
[391606458,1760698232401,-431.0,0.00014755,2]
[391606460,1760698232415,-453.0,0.00014784,2]
[391606462,1760698232426,-1681.0,0.0001479,2]
[391606464,1760698232437,-5535.51680858,0.000148,2]
[391606466,1760698232446,-276.0,0.00014814,2]
[391606468,1760698232460,-150.0,0.00014814,2]
[391606470,1760698232469,-1311.0,0.00014819,2]
[391606472,1760698232478,-1249.0,0.00014849,2]
[391606474,1760698232488,-11002.74058241,0.00014899,2]
[391606475,1760698232497,-11002.74058236,0.00014899,2]
[391606476,1760698232508,-1825.11236182,0.00014899,2]
[391606477,1760698232519,-9177.62822054,0.00014899,2]
[391606478,1760698232529,-11002.74058236,0.00014899,2]
[391606479,1760698232538,-11002.74058236,0.00014899,2]
[391606480,1760698232547,-11002.74058236,0.000149,2]
[391606481,1760698232557,-11002.74058236,0.000149,2]
[391606482,1760698232566,-11002.74058236,0.000149,2]
[391606483,1760698232576,-11002.74058236,0.000149,2]
[391606484,1760698232585,-568.99482995,0.000149,2]
[391606485,1760698232595,-218.2510638,0.000149,2]
[391606486,1760698232604,-4627.844,0.000149,2]
[391606487,1760698232614,-188.889,0.000149,2]
[391606488,1760698232623,-709.13717716,0.000149,2]
[391606489,1760698232633,-174.725318,0.000149,2]
[391606490,1760698232643,-11002.74058236,0.000149,2]
[391606491,1760698232653,-2092.02202384,0.000149,2]
[391606492,1760698232667,-10422.75361966,0.000149,2]
[391606494,1760698237860,-5535.51680855,0.00014811,2]
[391606495,1760698237870,-4933.48319145,0.000149,2]
[391606496,1760698237905,-414.59944691,0.000149,2]
[391606497,1760698237917,-10540.74737923,0.000149,2]
[391606498,1760698237929,-1824.04454806,0.000149,2]
[391606626,1760698239947,-3008.7,0.00014822,2]
[391606627,1760698240001,-2526.81680855,0.00014822,2]
[391606628,1760698240012,-9235.32876945,0.000149,2]
[391606629,1760698240024,-8814.8,0.000149,2]
[391606630,1760698240035,-327.84001672,0.000149,2]
[391606631,1760698240128,-1950.0,0.000149,2]
[391606632,1760698240139,-4220.76174618,0.000149,2]
[391606633,1760698240150,-1679.69,0.000149,2]
[391606634,1760698240173,-2436.77488256,0.000149,2]
[391606635,1760698240184,-2234.9192597,0.000149,2]
[391606636,1760698240195,-5241.7944189,0.000149,2]
[391606637,1760698240211,-441.9494,0.000149,2]
[391606639,1760698240223,-7549.24627189,0.000149,2]
[391606640,1760698240232,-360.122771,0.000149,2]
[391606641,1760698240241,-151.0,0.00014955,2]
[391606642,1760698240251,-151.0,0.00014956,2]
[391606643,1760698240260,-151.0,0.00014958,2]
[391606644,1760698240270,-151.0,0.0001496,2]
[391606646,1760698240279,-156.70109925,0.00014973,2]
[391606647,1760698240289,-503.19308079,0.00014973,2]
[391606649,1760698240298,-500.87459369,0.00014973,2]
[391606650,1760698240307,-500.0,0.00014973,2]
[391606651,1760698240317,-500.56534583,0.00014973,2]
[391606652,1760698240327,-500.0,0.00014973,2]
[391606654,1760698240337,-500.0,0.00014973,2]
[391606655,1760698240346,-500.0,0.00014973,2]
[391606656,1760698240356,-500.0,0.00014973,2]
[391606657,1760698240369,-500.0,0.00014973,2]
[391606658,1760698240379,-500.0,0.00014973,2]
[391606659,1760698240389,-500.0,0.00014973,2]
[391606662,1760698240399,-500.0,0.00014973,2]
[391606664,1760698240410,-500.0,0.00014973,2]
[391606665,1760698240422,-500.0,0.00014973,2]
[391606666,1760698240431,-500.0,0.00014973,2]
[391606667,1760698240441,-500.0,0.00014973,2]
[391606668,1760698240451,-501.63024808,0.00014973,2]
[391606669,1760698240461,-500.0,0.00014973,2]
[391606670,1760698240470,-500.0,0.00014973,2]
[391606671,1760698240480,-500.0,0.00014973,2]
[391606672,1760698240489,-500.0,0.00014973,2]
[391606673,1760698240499,-500.0,0.00014973,2]
[391606674,1760698240508,-275.57438061,0.00014973,2]
[391606675,1760698240518,-500.0,0.00014973,2]
[391606676,1760698240528,-500.0,0.00014973,2]
[391606677,1760698240537,-151.0,0.00014977,2]
[391606678,1760698240547,-151.0,0.00014977,2]
[391606679,1760698240556,-200.0,0.00014977,2]
[391606680,1760698240566,-151.0,0.00014977,2]
[391606681,1760698240580,-151.0,0.00014977,2]
[391606682,1760698240589,-151.0,0.00014977,2]
[391606683,1760698240599,-151.0,0.00014977,2]
[391606684,1760698240608,-151.0,0.00014977,2]
[391606685,1760698240617,-151.0,0.00014977,2]
[391606686,1760698240626,-151.0,0.00014977,2]
[391606687,1760698240636,-151.0,0.00014977,2]
[391606688,1760698240645,-151.0,0.00014977,2]
[391606689,1760698240655,-151.0,0.00014977,2]
[391606690,1760698240667,-151.0,0.00014977,2]
[391606691,1760698240677,-151.0,0.00014977,2]
[391606692,1760698240686,-151.0,0.00014977,2]
[391606693,1760698240696,-151.0,0.00014977,2]
[391606694,1760698240706,-151.0,0.00014977,2]
[391606695,1760698240715,-151.0,0.00014977,2]
[391606696,1760698240725,-151.0,0.00014977,2]
[391606697,1760698240735,-151.0,0.00014977,2]
[391606698,1760698240745,-151.0,0.00014977,2]
[391606699,1760698240754,-151.0,0.00014977,2]
[391606700,1760698240764,-151.0,0.00014977,2]
[391606701,1760698240774,-151.0,0.00014977,2]
[391606702,1760698240784,-151.0,0.00014977,2]
[391606703,1760698240794,-151.0,0.00014977,2]
[391606704,1760698240804,-151.0,0.00014977,2]
[391606705,1760698240813,-151.0,0.00014977,2]
[391606706,1760698240823,-151.0,0.00014977,2]
[391606707,1760698240834,-151.0,0.00014977,2]
[391606708,1760698240844,-151.0,0.00014977,2]
[391606709,1760698240854,-151.0,0.00014977,2]
[391606710,1760698240864,-151.0,0.00014977,2]
[391606711,1760698240874,-151.0,0.00014977,2]
[391606712,1760698240884,-151.0,0.00014977,2]
[391606713,1760698240894,-151.0,0.00014977,2]
[391606714,1760698240904,-151.0,0.00014977,2]
[391606715,1760698240917,-151.0,0.00014977,2]
[391606716,1760698240930,-151.0,0.00014977,2]
[391606717,1760698240940,-151.0,0.00014977,2]
[391606718,1760698240950,-151.0,0.00014977,2]
[391606719,1760698240960,-200.0,0.00014977,2]
[391606720,1760698240970,-151.0,0.00014977,2]
[391606721,1760698240980,-151.0,0.00014977,2]
[391606722,1760698240991,-151.0,0.00014977,2]
[391606723,1760698241001,-151.0,0.00014977,2]
[391606724,1760698241011,-151.0,0.00014977,2]
[391606725,1760698241021,-151.0,0.00014977,2]
[391606726,1760698241030,-151.0,0.00014977,2]
[391606727,1760698241040,-200.0,0.00014977,2]
[391606728,1760698241051,-151.0,0.00014977,2]
[391606729,1760698241061,-500.0,0.00014977,2]
[391606730,1760698241071,-500.0,0.00014977,2]
[391606731,1760698241081,-500.0,0.00014977,2]
[391606732,1760698241091,-500.0,0.00014977,2]
[391606733,1760698241101,-500.0,0.00014977,2]
[391606734,1760698241111,-500.0,0.00014977,2]
[391606735,1760698241123,-500.0,0.00014977,2]
[391606736,1760698241133,-151.0,0.00014983,2]
[391606737,1760698241144,-500.0,0.00014986,2]
[391606738,1760698241154,-500.0,0.00014986,2]
[391606739,1760698241165,-159084.20982385,0.00014986,2]
[391606740,1760698241178,-1583.06796825,0.00014986,2]
[391606741,1760698241190,-10414.7222079,0.00014986,2]
[391606742,1760698241200,-11278.0,0.00014986,2]
[391606743,1760698241210,-1212.38783948,0.0001499,2]
[391606744,1760698241222,-151.0,0.00014997,2]
[391606745,1760698241234,-174.395763,0.00014998,2]
[391606746,1760698241244,-500.0,0.00014998,2]
[391606747,1760698241255,-500.0,0.00014998,2]
[391606748,1760698241266,-500.0,0.00014998,2]
[391606749,1760698241276,-200.49145803,0.00014998,2]
[391606750,1760698241286,-500.0,0.00014998,2]
[391606751,1760698241296,-500.0,0.00014998,2]
[391606752,1760698241306,-500.0,0.00014998,2]
[391606753,1760698241331,-500.0,0.00014998,2]
[391606754,1760698241342,-500.0,0.00014998,2]
[391606755,1760698241352,-500.0,0.00014998,2]
[391606756,1760698241362,-500.0,0.00014998,2]
[391606757,1760698241374,-500.0,0.00014998,2]
[391606758,1760698241386,-500.0,0.00014998,2]
[391606759,1760698241396,-500.0,0.00014998,2]
[391606760,1760698241406,-500.0,0.00014998,2]
[391606761,1760698241419,-500.0,0.00014998,2]
[391606762,1760698241429,-500.0,0.00014998,2]
[391606763,1760698241440,-500.0,0.00014998,2]
[391606764,1760698241451,-517.93287247,0.00014999,2]
[391606765,1760698241461,-1813.04,0.00014999,2]
[391606766,1760698241472,-1813.04,0.00014999,2]
[391606767,1760698241482,-1813.04,0.00014999,2]
[391606768,1760698241492,-1813.04,0.00014999,2]
[391606769,1760698241503,-1813.04,0.00014999,2]
[391606770,1760698241513,-1813.04,0.00014999,2]
[391606771,1760698241523,-1813.04,0.00014999,2]
[391606772,1760698241534,-1813.04,0.00014999,2]
[391606773,1760698241544,-1813.04,0.00014999,2]
[391606774,1760698241555,-1813.04,0.00014999,2]
[391606775,1760698241565,-1813.04,0.00014999,2]
[391606776,1760698241575,-1813.04,0.00014999,2]
[391606777,1760698241586,-1813.04,0.00014999,2]
[391606778,1760698241596,-1813.04,0.00014999,2]
[391606779,1760698241607,-1813.04,0.00014999,2]
[391606780,1760698241618,-1813.04,0.00014999,2]
[391606781,1760698241628,-1813.04,0.00014999,2]
[391606782,1760698241639,-1813.04,0.00014999,2]
[391606783,1760698241649,-1813.04,0.00014999,2]
[391606784,1760698241660,-1813.04,0.00014999,2]
[391606785,1760698241674,-1813.04,0.00014999,2]
[391606786,1760698241684,-1813.04,0.00014999,2]
[391606787,1760698241694,-1813.04,0.00014999,2]
[391606788,1760698241703,-1813.09905122,0.00014999,2]
[391606789,1760698241714,-500.0,0.00014999,2]
[391606790,1760698241725,-500.0,0.00014999,2]
[391606791,1760698241735,-487.72729578,0.00014999,2]
[391606792,1760698241745,-150.0,0.00014999,2]
[391606793,1760698241756,-669.93898507,0.00014999,2]
[391606794,1760698241766,-666.0,0.00014999,2]